bitfinex/quotes_SOLUSD_20251001
["timestamp","ask_amount","ask_price","bid_price","bid_amount"]
[1759286744180,4.77137853,209.59,209.57,13.59559401]
[1759286744485,4.77137853,209.59,209.57,14.27559401]
[1759286744869,25.57099792,209.6,209.58,0.68]
[1759286745076,25.57099792,209.6,209.59,33.5]
[1759286745701,26.24099792,209.6,209.59,33.5]
[1759286745867,25.57099792,209.6,209.59,33.5]
[1759286747066,26.24099792,209.6,209.59,33.5]
[1759286747563,25.57099792,209.6,209.59,33.5]
[1759286748391,26.24099792,209.6,209.59,33.5]
[1759286748689,25.57099792,209.6,209.59,33.5]
[1759286749181,26.24099792,209.6,209.59,33.5]
[1759286750401,25.57099792,209.6,209.59,33.5]
[1759286751314,20.8,209.57,209.56,37.2]
[1759286751599,21.47,209.57,209.56,70.66]
[1759286752090,20.8,209.57,209.56,70.66]
[1759286752403,25.57167533,209.57,209.56,70.66]
[1759286752804,25.57167533,209.57,209.56,71.34]
[1759286752978,11.92616441,209.63,209.57,13.59559401]
[1759286753180,11.92616441,209.63,209.56,71.34]
[1759286753181,11.92616441,209.63,209.59,13.59559401]
[1759286753388,20.8,209.61,209.6,33.48]
[1759286754287,26.27076475,209.61,209.6,33.48]
[1759286754802,25.57076475,209.61,209.6,33.48]
[1759286756678,20.8,209.6,209.56,37.2]
[1759286756879,3.0823575,209.59,209.57,33.5]
[1759286757092,2.3823575,209.58,209.57,33.5]
[1759286757290,3.0823575,209.58,209.5,0.1]
[1759286757483,2.3823575,209.55,209.5,0.1]
[1759286757992,0.7,209.54,209.5,0.1]
[1759286758189,0.7,209.53,209.5,0.1]
[1759286758502,20.8,209.51,209.5,0.1]
[1759286758800,20.8,209.51,209.5,33.62]
[1759286759590,25.57304185,209.51,209.5,33.62]
[1759286759790,25.57304185,209.51,209.5,70.82]
[1759286760000,26.27304185,209.51,209.5,70.82]
[1759286760201,25.57304185,209.51,209.5,70.82]
[1759286760389,25.57304185,209.51,209.5,71.5]
[1759286761488,25.57304185,209.51,209.5,70.82]
[1759286762391,25.57304185,209.51,209.5,71.5]
[1759286763501,11.92996099,209.56,209.51,13.59559401]
[1759286763806,20.8,209.54,209.53,13.59559401]
[1759286765083,20.8,209.54,209.53,14.27559401]
[1759286765303,11.92996099,209.56,209.53,14.27559401]
[1759286765489,11.92996099,209.56,209.54,33.54]
[1759286765808,16.70186402,209.56,209.54,33.54]
[1759286766507,25.57190303,209.56,209.54,34.22]
[1759286767094,0.7,209.6,209.54,34.22]
[1759286767095,4.77150464,209.58,209.55,13.59559401]
[1759286767307,4.77030959,209.63,209.57,13.59559401]
[1759286767499,4.76962701,209.66,209.59,13.59559401]
[1759286767710,0.7,209.65,209.61,13.59559401]
[1759286767916,0.7,209.64,209.62,33.56]
[1759286768089,2.3823575,209.66,209.63,33.56]
[1759286768290,2.3823575,209.66,209.64,33.56]
[1759286768488,2.3823575,209.67,209.64,33.56]
[1759286768702,0.7,209.66,209.64,33.56]
[1759286768910,0.7,209.65,209.64,33.56]
[1759286769210,0.7,209.68,209.64,33.56]
[1759286769402,40.52443384,209.75,209.66,13.59559401]
[1759286769403,0.7,209.73,209.66,13.59559401]
[1759286769617,4.76826244,209.72,209.67,33.58]
[1759286769795,0.7,209.71,209.67,33.58]
[1759286769995,20.8,209.69,209.67,33.58]
[1759286770201,0.7,209.71,209.67,33.58]
[1759286770503,20.8,209.69,209.67,33.58]
[1759286770709,0.7,209.71,209.67,33.58]
[1759286771124,20.8,209.69,209.67,33.58]
[1759286772214,4.76917207,209.68,209.67,47.17559401]
[1759286774907,20.8,209.69,209.68,13.59559401]
[1759286776130,20.8,209.69,209.67,33.58]
[1759286776131,0.7,209.69,209.67,33.58]
[1759286776613,20.8,209.67,209.63,50.79559401]
[1759286776808,4.76962701,209.66,209.64,33.56]
[1759286777432,5.46962701,209.66,209.64,33.56]
[1759286778310,0.72,209.65,209.64,33.56]
[1759286778511,3.1023575,209.65,209.64,33.56]
[1759286779033,20.8,209.63,209.55,37.91]
[1759286779210,0.72,209.62,209.56,13.59559401]
[1759286779411,0.72,209.61,209.56,13.59559401]
[1759286780105,0.72,209.61,209.57,33.56]
[1759286780323,20.8,209.58,209.57,47.15559401]
[1759286782333,25.57144765,209.58,209.57,47.15559401]
[1759286782829,25.57144765,209.58,209.57,13.59559401]
[1759286783129,25.57144765,209.58,209.57,47.15559401]
[1759286783628,11.92621458,209.63,209.57,47.85559401]
[1759286783832,4.77030959,209.63,209.58,0.7]
[1759286784031,25.57030959,209.63,209.59,33.54]
[1759286784342,25.57099236,209.6,209.59,33.54]
[1759286786148,16.69688006,209.62,209.59,34.24]
[1759286786828,16.69688006,209.62,209.59,113.34]
[1759286787021,16.69688006,209.62,209.59,112.64]
[1759286787220,16.69688006,209.62,209.6,37.2]
[1759286787539,16.69688006,209.62,209.61,33.52]
[1759286789631,4.77053716,209.62,209.61,33.52]
[1759286789935,25.57053716,209.62,209.61,33.52]
[1759286790435,25.57053716,209.62,209.61,34.22]
[1759286792916,4.77019431,209.64,209.61,47.81559401]
[1759286793117,4.77019431,209.64,209.62,0.7]
[1759286793321,4.77019431,209.64,209.63,33.5]
[1759286796152,16.69494738,209.65,209.63,33.5]
[1759286796650,4.76985451,209.65,209.63,34.2]
[1759286796852,25.56985451,209.65,209.63,34.2]
[1759286797060,25.56985451,209.65,209.63,33.5]
[1759286798757,25.56985451,209.65,209.63,112.6]
[1759286799360,4.76985451,209.65,209.63,112.6]
[1759286799860,4.76985451,209.65,209.63,113.3]
[1759286800053,20.8,209.65,209.64,14.29559401]
[1759286801258,4.76963463,209.66,209.64,14.29559401]
[1759286801459,25.56963463,209.66,209.65,47.77559401]
[1759286801842,4.76963463,209.66,209.65,47.77559401]
[1759286802146,4.76963463,209.66,209.65,47.07559401]
[1759286803563,5.46963463,209.66,209.65,33.48]
[1759286806160,12.6233625,209.68,209.65,33.48]
[1759286806365,0.7,209.67,209.65,33.48]
[1759286808168,4.76962701,209.66,209.65,33.48]
[1759286810986,4.76943596,209.67,209.66,13.59559401]
[1759286811148,4.76943596,209.67,209.66,47.71559401]
[1759286811466,4.76943596,209.67,209.66,47.01559401]
[1759286812264,4.76894463,209.69,209.66,47.01559401]
[1759286812463,5.46894463,209.69,209.66,47.01559401]
[1759286812869,4.76894463,209.69,209.66,47.01559401]
[1759286813368,4.76871721,209.7,209.66,47.01559401]
[1759286813569,4.76871721,209.7,209.66,47.72559401]
[1759286813777,4.76871721,209.7,209.66,47.01559401]
[1759286814066,4.76871721,209.7,209.68,13.59559401]
[1759286814266,4.76871721,209.7,209.69,33.42]
[1759286816059,4.76871721,209.7,209.69,70.6]
[1759286817056,0.7,209.73,209.69,70.6]
[1759286817261,0.7,209.72,209.69,70.6]
[1759286817462,0.7,209.71,209.69,37.18]
[1759286817663,2.22537377,209.7,209.69,37.18]
[1759286817861,2.22537377,209.7,209.69,70.58]
[1759286818181,0.7,209.7,209.69,70.58]
[1759286819077,5.46871721,209.7,209.69,70.58]
[1759286819876,4.76871721,209.7,209.69,70.58]
[1759286820264,5.46871721,209.7,209.69,70.58]
[1759286820680,4.76871721,209.7,209.69,70.58]
[1759286821193,11.92091395,209.72,209.69,70.58]
[1759286821375,12.62091395,209.72,209.69,70.58]
[1759286823079,4.76871721,209.7,209.69,70.58]
[1759286823277,5.46871721,209.7,209.69,70.58]
[1759286825487,4.76871721,209.7,209.69,70.58]
[1759286826487,4.76871721,209.7,209.69,163.98559401]
[1759286828183,11.92091395,209.72,209.69,163.98559401]
[1759286828184,11.92091395,209.72,209.7,13.59559401]
[1759286828382,11.92091395,209.72,209.71,46.97559401]
[1759286829007,4.76803509,209.73,209.72,13.59559401]
[1759286829210,23.92468103,209.78,209.72,14.30559401]
[1759286829211,4.76735316,209.76,209.72,14.30559401]
[1759286829498,4.76735316,209.76,209.73,34.09]
[1759286829697,4.76735316,209.76,209.74,14.30559401]
[1759286829898,4.76735316,209.76,209.75,46.97559401]
[1759286830201,16.68375285,209.79,209.76,13.59559401]
[1759286830398,17.38375285,209.79,209.77,33.4]
[1759286830698,0.7,209.78,209.77,33.4]
[1759286832292,5.46689865,209.78,209.77,33.4]
[1759286832805,4.76689865,209.78,209.77,33.4]
[1759286833794,11.91708142,209.79,209.77,33.4]
[1759286833795,16.68375285,209.79,209.77,33.4]
[1759286835908,17.38375285,209.79,209.77,33.4]
[1759286838713,16.68375285,209.79,209.77,33.4]
[1759286839212,17.37375285,209.79,209.77,33.4]
[1759286839619,11.91708142,209.79,209.77,34.12]
[1759286839802,11.91708142,209.79,209.77,33.4]
[1759286843099,4.76644423,209.8,209.78,13.59559401]
[1759286843298,4.76644423,209.8,209.79,33.36]
[1759286843710,4.76644423,209.8,209.79,34.04]
[1759286843892,11.91547789,209.82,209.79,34.04]
[1759286844095,11.91547789,209.82,209.8,0.68]
[1759286844290,11.91547789,209.82,209.81,33.36]
[1759286847392,11.91547789,209.82,209.81,70.52]
[1759286849907,4.76576276,209.83,209.81,70.52]
[1759286850112,4.76576276,209.83,209.81,71.2]
[1759286850421,0.66,209.82,209.81,37.16]
[1759286850607,0.66,209.82,209.81,70.48]
[1759286851913,5.42598989,209.82,209.81,70.48]
[1759286856423,26.22598989,209.82,209.81,70.48]
[1759286859418,5.42598989,209.82,209.81,70.48]
[1759286859620,4.76598989,209.82,209.81,70.48]
[1759286860526,5.42598989,209.82,209.81,70.48]
[1759286860923,4.76598989,209.82,209.81,70.48]
[1759286863929,19.71957625,209.82,209.73,37.18]
[1759286864240,2.37861162,209.77,209.7,0.68]
[1759286864415,0.66,209.76,209.7,0.68]
[1759286864605,3.03861162,209.76,209.71,13.59559401]
[1759286864806,2.37861162,209.76,209.71,13.59559401]
[1759286865004,0.66,209.75,209.72,33.32]
[1759286865514,4.76803509,209.73,209.72,33.32]
[1759286865705,5.42803509,209.73,209.72,33.32]
[1759286866317,7.80664671,209.73,209.72,33.32]
[1759286866825,5.42803509,209.73,209.72,33.32]
[1759286870038,5.42803509,209.73,209.72,70.48]
[1759286870928,4.76803509,209.73,209.72,71.16]
[1759286871132,4.76803509,209.73,209.72,84.75559401]
[1759286871526,4.76803509,209.73,209.72,51.43559401]
[1759286871728,4.76803509,209.73,209.72,84.75559401]
[1759286872427,11.91918556,209.75,209.72,84.75559401]
[1759286872616,11.91918556,209.75,209.73,0.68]
[1759286872814,11.91918556,209.75,209.72,84.07559401]
[1759286872815,11.91918556,209.75,209.74,33.32]
[1759286874442,12.60918556,209.75,209.74,33.32]
[1759286876132,17.37676601,209.75,209.74,33.32]
[1759286877238,16.68676601,209.75,209.74,33.32]
[1759286878037,11.91918556,209.75,209.74,33.32]
[1759286879631,12.60918556,209.75,209.74,33.32]
[1759286880030,11.91918556,209.75,209.74,33.32]
[1759286882025,16.68676601,209.75,209.74,33.32]
[1759286884141,16.68676601,209.75,209.74,34.02]
[1759286884612,16.68676601,209.75,209.74,33.32]
[1759286885039,11.91918556,209.75,209.74,33.32]
[1759286885642,11.91918556,209.75,209.74,34.02]
[1759286885934,11.91918556,209.75,209.74,33.32]
[1759286886835,11.88345039,209.75,209.74,33.32]
[1759286890021,4.76735316,209.76,209.74,33.32]
[1759286891141,5.45735316,209.76,209.74,33.32]
[1759286893242,0.69,209.75,209.74,33.32]
[1759286893436,3.06861162,209.75,209.74,37.18]
[1759286893758,3.06861162,209.75,209.67,0.7]
[1759286893929,2.37861162,209.74,209.67,0.7]
[1759286894129,0.69,209.75,209.65,13.59559401]
[1759286894130,2.37861162,209.72,209.65,14.29559401]
[1759286894350,0.69,209.71,209.65,14.29559401]
[1759286894843,40.52250189,209.76,209.67,13.59559401]
[1759286895044,40.52250189,209.76,209.69,13.59559401]
[1759286895045,0.69,209.75,209.69,13.59559401]
[1759286895233,16.68732716,209.74,209.7,33.32]
[1759286895433,17.37732716,209.74,209.7,33.32]
[1759286895635,0.69,209.73,209.7,33.32]
[1759286895828,16.68732716,209.74,209.7,33.32]
[1759286895829,0.69,209.72,209.7,33.32]
[1759286897050,17.37732716,209.74,209.7,33.32]
[1759286897248,0.69,209.73,209.7,33.32]
[1759286897445,16.68732716,209.74,209.7,33.32]
[1759286897748,0.69,209.72,209.7,33.32]
[1759286898533,39.86593878,209.74,209.7,33.32]
[1759286898847,0.71,209.71,209.7,33.32]
[1759286899630,5.47848981,209.71,209.7,33.32]
[1759286899828,5.47848981,209.71,209.7,70.5]
[1759286901258,19.77832597,209.71,209.63,14.26559401]
[1759286901433,3.08861162,209.7,209.63,36.1707535]
[1759286901629,3.08861162,209.69,209.63,36.1707535]
[1759286901940,0.71,209.68,209.63,36.1707535]
[1759286902136,0.71,209.67,209.6,13.59559401]
[1759286902343,0.71,209.66,209.6,14.26559401]
[1759286902538,0.71,209.65,209.61,33.32]
[1759286902746,0.71,209.64,209.61,33.32]
[1759286903351,4.77030959,209.63,209.61,33.32]
[1759286905353,11.92544472,209.64,209.61,33.32]
[1759286906136,11.92544472,209.64,209.61,34.04]
[1759286906657,11.92544472,209.64,209.61,33.32]
[1759286906838,0.7,209.63,209.61,33.32]
[1759286907652,4.77053716,209.62,209.61,33.32]
[1759286908554,5.47053716,209.62,209.61,33.32]
[1759286909560,1.525494,209.63,209.61,33.32]
[1759286909561,4.77030959,209.63,209.61,33.32]
[1759286909731,0.7,209.62,209.61,33.32]
[1759286909935,0.7,209.62,209.61,70.5]
[1759286910354,4.77030959,209.63,209.61,71.22]
[1759286910544,4.77030959,209.63,209.62,0.72]
[1759286911653,11.92544472,209.64,209.62,0.72]
[1759286913459,4.76962701,209.66,209.63,0.72]
[1759286913644,11.92406753,209.66,209.64,33.34]
[1759286913960,4.76917207,209.68,209.65,0.72]
[1759286914586,16.69210224,209.68,209.65,0.72]
[1759286914754,16.69210224,209.68,209.66,0.72]
[1759286914940,16.69210224,209.68,209.67,34.06]
[1759286915144,4.76917207,209.68,209.67,34.06]
[1759286915663,16.68996919,209.71,209.67,33.34]
[1759286915862,0.7,209.69,209.67,33.34]
[1759286916069,18.21546319,209.71,209.67,33.34]
[1759286916070,0.7,209.68,209.67,33.34]
[1759286917864,5.46917207,209.68,209.67,33.34]
[1759286921679,17.39051024,209.7,209.67,33.34]
[1759286921875,16.69051024,209.7,209.67,33.34]
[1759286922063,0.7,209.69,209.67,33.34]
[1759286924163,4.76917207,209.68,209.67,33.34]
[1759286926267,16.69051024,209.7,209.67,33.34]
[1759286926480,0.7,209.69,209.67,33.34]
[1759286927355,16.69051024,209.7,209.67,33.34]
[1759286927555,0.7,209.69,209.67,33.34]
[1759286928058,5.46917207,209.68,209.67,33.34]
[1759286928256,4.76917207,209.68,209.67,33.34]
[1759286928653,4.76917207,209.68,209.67,34.06]
[1759286929356,4.76917207,209.68,209.67,33.34]
[1759286929562,11.92179303,209.7,209.68,13.59559401]
[1759286929563,4.76875974,209.7,209.68,13.59559401]
[1759286929984,0.7,209.69,209.67,55.24515949]
[1759286930279,5.46917207,209.68,209.67,33.34]
[1759286930470,18.91759624,209.68,209.63,13.59559401]
[1759286930665,1.525494,209.66,209.64,33.34]
[1759286930869,2.225494,209.65,209.6,37.18]
[1759286931079,2.225494,209.64,209.6,37.18]
[1759286931277,0.7,209.63,209.6,37.18]
[1759286931969,0.7,209.63,209.62,33.36]
[1759286932171,4.77030959,209.63,209.62,33.36]
[1759286932575,5.47030959,209.63,209.62,33.36]
[1759286935086,4.77030959,209.63,209.62,33.36]
[1759286936078,4.77030959,209.63,209.62,34.05]
[1759286936574,4.77030959,209.63,209.62,33.36]
[1759286937484,5.45030959,209.63,209.62,33.36]
[1759286938473,4.77030959,209.63,209.62,33.36]
[1759286939371,4.77008204,209.64,209.62,33.36]
[1759286939583,5.45008204,209.64,209.62,33.36]
[1759286942791,4.77008204,209.64,209.63,0.69]
[1759286942996,4.77008204,209.64,209.62,33.36]
[1759286943197,4.77008204,209.64,209.62,34.05]
[1759286943383,4.77008204,209.64,209.62,33.36]
[1759286943898,4.76848981,209.71,209.64,13.59559401]
[1759286944079,4.76848981,209.71,209.66,13.59559401]
[1759286944080,16.69010828,209.71,209.66,13.59559401]
[1759286944276,16.69010828,209.71,209.67,34.03]
[1759286944485,16.69010828,209.71,209.68,0.69]
[1759286944792,16.69010828,209.71,209.69,33.34]
[1759286945090,11.92161847,209.71,209.69,33.34]
[1759286945688,4.76826244,209.72,209.7,0.69]
[1759286945891,5.44644423,209.8,209.71,46.93559401]
[1759286946090,17.36255481,209.8,209.73,13.59559401]
[1759286946284,20.8,209.77,209.74,33.36]
[1759286946488,0.68,209.79,209.74,33.36]
[1759286946688,20.8,209.77,209.74,33.36]
[1759286947081,4.76735316,209.76,209.74,33.36]
[1759286948895,4.76735316,209.76,209.75,0.69]
[1759286949297,4.76735316,209.76,209.74,33.36]
[1759286949489,4.76735316,209.76,209.74,34.05]
[1759286952601,4.76735316,209.76,209.74,33.36]
[1759286952785,4.76667143,209.79,209.75,14.28559401]
[1759286953098,4.76667143,209.79,209.77,13.59559401]
[1759286953305,4.76667143,209.79,209.78,33.36]
[1759286953601,4.76667143,209.79,209.78,34.05]
[1759286954591,11.91614031,209.8,209.78,34.05]
[1759286956302,4.76598989,209.82,209.79,0.69]
[1759286956602,4.76598989,209.82,209.8,70.52]
[1759286958503,0.66,209.81,209.8,37.18]
[1759286958810,2.185494,209.81,209.8,70.54]
[1759286958990,0.66,209.81,209.8,70.54]
[1759286959314,25.56598989,209.82,209.8,70.54]
[1759286959998,0.66,209.81,209.8,70.54]
[1759286961802,26.22621705,209.81,209.8,37.18]
[1759286962003,26.22621705,209.81,209.8,70.56]
[1759286962310,25.56621705,209.81,209.8,70.56]
[1759286965091,4.76621705,209.81,209.8,70.56]
[1759286965916,16.68061605,209.83,209.8,70.56]
[1759286966101,17.40061605,209.83,209.8,70.56]
[1759286972610,0.72,209.82,209.75,22.55515949]
[1759286972919,17.40061605,209.83,209.77,13.59559401]
[1759286973119,17.40061605,209.83,209.78,0.65]
[1759286973515,0.72,209.82,209.78,0.65]
[1759286973812,0.72,209.82,209.79,33.34]
[1759286974304,4.76621705,209.81,209.79,33.34]
[1759286975903,4.76621705,209.81,209.8,14.24559401]
[1759286976209,11.91485329,209.83,209.8,14.24559401]
[1759286976210,16.68061605,209.83,209.8,14.24559401]
[1759286976408,16.68061605,209.83,209.81,33.99]
[1759286976721,16.68061605,209.83,209.82,0.65]
[1759286976918,16.68061605,209.83,209.81,33.34]
[1759286977127,16.68061605,209.83,209.81,33.99]
[1759286977506,16.68061605,209.83,209.81,33.34]
[1759286978216,0.2,209.84,209.82,14.24559401]
[1759286978528,0.2,209.84,209.83,46.93559401]
[1759286978724,0.2,209.84,209.83,47.58559401]
[1759286979043,0.2,209.84,209.83,46.93559401]
[1759286979335,0.2,209.84,209.83,47.58559401]
[1759286980538,5.68553564,209.84,209.83,46.93559401]
[1759286980830,5.68553564,209.84,209.83,33.34]
[1759286982205,4.96553564,209.84,209.83,33.34]
[1759286983231,17.59937475,209.84,209.8,37.16]
[1759286983420,0.72,209.83,209.8,37.16]
[1759286983619,0.72,209.82,209.8,37.16]
[1759286984219,5.48621705,209.81,209.8,37.16]
[1759286984436,5.48621705,209.81,209.8,70.52]
[1759286986728,4.76621705,209.81,209.8,70.52]
[1759286988035,16.68016966,209.83,209.8,70.52]
[1759286988416,17.40016966,209.83,209.8,70.52]
[1759286988620,0.72,209.82,209.8,70.52]
[1759286989518,0.72,209.81,209.8,37.16]
[1759286989719,0.72,209.81,209.8,70.52]
[1759286990240,5.48621705,209.81,209.8,70.52]
[1759286993218,5.48621705,209.81,209.8,33.36]
[1759286993522,5.48621705,209.81,209.77,21.90515949]
[1759286993523,43.6119008,209.81,209.76,37.16]
[1759286993708,20.8,209.78,209.76,37.16]
[1759286993912,0.67,209.77,209.71,37.84]
[1759286994138,0.67,209.77,209.72,37.16]
[1759286994333,0.67,209.77,209.72,37.84]
[1759286994644,16.68573607,209.76,209.72,37.16]
[1759286994835,17.35573607,209.76,209.73,33.36]
[1759286997932,0.67,209.75,209.73,33.36]
[1759286998119,0.67,209.75,209.72,37.16]
[1759286998120,3.04905586,209.75,209.72,37.16]
[1759286998321,3.04905586,209.74,209.66,0.68]
[1759286998517,20.8,209.73,209.66,0.68]
[1759286998720,0.67,209.72,209.65,13.59559401]
[1759286999034,0.67,209.71,209.65,13.59559401]
[1759286999331,0.67,209.71,209.66,33.34]
[1759286999538,0.67,209.7,209.66,33.34]
[1759287000039,4.76917207,209.68,209.67,37.16]
[1759287000244,5.43917207,209.68,209.67,37.16]
[1759287002256,5.43917207,209.68,209.61,57.96]
[1759287002257,19.7411581,209.68,209.6,0.68]
[1759287002422,2.37905586,209.67,209.6,0.68]
[1759287002746,17.36210224,209.68,209.58,13.59559401]
[1759287002747,20.8,209.65,209.58,14.27559401]
[1759287002953,20.8,209.65,209.54,2.48936768]
[1759287002954,0.67,209.64,209.57,0.68]
[1759287003124,0.67,209.64,209.55,0.68]
[1759287003325,16.69608357,209.63,209.55,0.68]
[1759287003543,0.67,209.62,209.57,13.59559401]
[1759287003751,0.67,209.62,209.57,14.27559401]
[1759287004538,0.67,209.62,209.58,0.68]
[1759287004843,16.69608357,209.63,209.59,33.36]
[1759287005036,0.67,209.62,209.59,33.36]
[1759287005240,16.69608357,209.63,209.59,33.36]
[1759287005442,17.36608357,209.63,209.59,33.36]
[1759287005624,0.67,209.62,209.59,33.36]
[1759287007034,4.77076475,209.61,209.59,33.36]
[1759287009850,4.77076475,209.61,209.51,0.1]
[1759287009851,0.67,209.6,209.51,0.1]
[1759287010158,2.37905586,209.59,209.52,71.2]
[1759287010449,21.47,209.58,209.52,71.2]
[1759287010651,0.67,209.57,209.52,71.2]
[1759287010848,0.67,209.56,209.52,70.52]
[1759287011231,16.70245764,209.55,209.52,70.52]
[1759287011432,17.37245764,209.55,209.52,70.52]
[1759287012328,4.77213075,209.55,209.53,0.68]
[1759287012523,4.77213075,209.55,209.53,13.59559401]
[1759287012847,4.77213075,209.55,209.54,0.68]
[1759287013242,16.70086366,209.57,209.54,0.68]
[1759287013429,16.70086366,209.57,209.55,33.36]
[1759287014948,0.67,209.56,209.55,33.36]
[1759287015342,5.44190303,209.56,209.55,33.36]
[1759287015739,19.75071647,209.56,209.52,37.18]
[1759287016044,0.67,209.55,209.52,37.18]
[1759287016235,0.67,209.54,209.52,37.18]
[1759287017045,0.67,209.54,209.53,33.38]
[1759287017357,5.44235849,209.54,209.53,33.38]
[1759287017736,7.82141435,209.54,209.52,37.18]
[1759287017951,7.82141435,209.54,209.53,33.38]
[1759287017952,7.15141435,209.54,209.53,33.38]
[1759287018149,4.77235849,209.54,209.53,33.38]
[1759287018330,27.95141435,209.54,209.53,33.38]
[1759287018531,28.64141435,209.54,209.52,37.18]
[1759287018732,0.69,209.53,209.51,0.1]
[1759287018933,21.49,209.52,209.51,0.1]
[1759287019548,5.46281405,209.52,209.51,0.1]
[1759287019755,26.26281405,209.52,209.51,0.1]
[1759287019956,26.26281405,209.52,209.51,70.66]
[1759287020452,25.57281405,209.52,209.51,70.66]
[1759287021545,26.26281405,209.52,209.51,70.66]
[1759287021741,26.26281405,209.52,209.5,0.1]
[1759287021742,28.64186991,209.52,209.5,0.1]
[1759287022256,20.8,209.49,209.48,1e-08]
[1759287022462,20.8,209.49,209.46,0.1]
[1759287022463,23.17905586,209.49,209.46,1e-08]
[1759287022647,0.69,209.48,209.46,1e-08]
[1759287023154,0.69,209.48,209.47,33.44]
[1759287023759,4.77395331,209.47,209.46,1e-08]
[1759287023967,25.57395331,209.47,209.46,1e-08]
[1759287025242,25.57395331,209.47,209.46,33.44000001]
[1759287025455,28.64300917,209.47,209.46,33.44000001]
[1759287025835,40.57789244,209.47,209.41,13.59559401]
[1759287026160,2.37905586,209.46,209.4,0.69]
[1759287026546,0.69,209.46,209.38,13.59559401]
[1759287026742,2.37905586,209.43,209.37,13.59559401]
[1759287027064,2.37905586,209.43,209.37,14.28559401]
[1759287027065,23.17905586,209.43,209.37,14.28559401]
[1759287027244,23.86905586,209.43,209.37,14.28559401]
[1759287027749,23.86905586,209.43,209.38,33.44]
[1759287027952,16.71282589,209.42,209.38,33.44]
[1759287028145,17.40282589,209.42,209.33,34.67991715]
[1759287029953,17.40282589,209.42,209.35,13.59559401]
[1759287030157,0.69,209.41,209.35,13.59559401]
[1759287030356,0.69,209.4,209.35,13.59559401]
[1759287030940,0.69,209.4,209.35,14.00559401]
[1759287031752,16.71522039,209.39,209.35,13.59559401]
[1759287032065,17.40522039,209.39,209.35,13.59559401]
[1759287032459,17.40522039,209.39,209.34,70.66]
[1759287032650,17.40522039,209.39,209.34,71.07]
[1759287034875,16.71522039,209.39,209.35,0.41]
[1759287035980,17.40522039,209.39,209.34,70.66]
[1759287036172,17.40522039,209.39,209.34,71.07]
[1759287037858,16.71522039,209.39,209.34,70.66]
[1759287038057,0.69,209.38,209.34,70.66]
[1759287038477,0.69,209.37,209.34,70.66]
[1759287038668,0.69,209.36,209.34,70.66]
[1759287038865,16.71522039,209.39,209.34,70.66]
[1759287038866,0.69,209.35,209.34,70.66]
[1759287039675,5.46668975,209.35,209.34,70.66]
[1759287040378,4.77668975,209.35,209.34,70.66]
[1759287040581,4.77577725,209.39,209.34,71.07]
[1759287041272,16.71522039,209.39,209.34,71.07]
[1759287041686,16.71522039,209.39,209.34,70.66]
[1759287041993,16.71522039,209.39,209.35,0.41]
[1759287042222,17.40522039,209.39,209.34,70.66]
[1759287042367,17.40522039,209.39,209.34,71.07]
[1759287045478,16.71522039,209.39,209.34,70.66]
[1759287045683,16.71522039,209.39,209.35,0.41]
[1759287046398,4.77577725,209.39,209.36,0.41]
[1759287046696,4.77577725,209.39,209.37,33.44]
[1759287054486,4.77577725,209.39,209.38,37.24]
[1759287057811,5.49577725,209.39,209.38,37.24]